fUST/lending_fUST_20250702
["ID","MTS","AMOUNT","RATE_DAILY","PERIOD"]
[368966044,1751415057345,-506.85,0.0002189,2]
[368966045,1751415057355,-635.59,0.0002189,2]
[368966046,1751415057364,-460.0,0.0002189,2]
[368966047,1751415057374,-151.0,0.0002191,2]
[368966048,1751415057384,-5000.0,0.00021926,2]
[368966049,1751415057394,-824.79906604,0.00021926,2]
[368966050,1751415057404,-500.0,0.00021926,2]
[368966051,1751415057414,-25000.0,0.00021926,2]
[368966052,1751415057424,-500.0,0.00021926,2]
[368966053,1751415057433,-500.0,0.00021926,2]
[368966054,1751415057443,-500.0,0.00021926,2]
[368966055,1751415057453,-500.0,0.00021926,2]
[368966056,1751415057463,-500.0,0.00021926,2]
[368966057,1751415057472,-207.4,0.00021926,2]
[368966058,1751415057482,-500.0,0.00021926,2]
[368966059,1751415057492,-500.0,0.00021926,2]
[368966060,1751415057503,-500.0,0.00021926,2]
[368966061,1751415057513,-500.0,0.00021926,2]
[368966062,1751415057523,-500.0,0.00021926,2]
[368966063,1751415057533,-500.0,0.00021926,2]
[368966064,1751415057543,-500.0,0.00021926,2]
[368966065,1751415057553,-500.0,0.00021926,2]
[368966066,1751415057563,-500.0,0.00021926,2]
[368966067,1751415057572,-5242.17,0.00022,7]
[368966068,1751415057582,-551.52,0.00022,7]
[368966069,1751415057675,-867.19724592,0.00022,2]
[368966070,1751415057685,-12596.7,0.00022,2]
[368966071,1751415057696,-828.39515417,0.00022038,6]
[368966072,1751415057706,-151.0,0.000221,9]
[368966073,1751415057716,-597.8,0.00022161,2]
[368966074,1751415057726,-800.31,0.00022161,2]
[368966075,1751415057736,-460.0,0.00022161,2]
[368966076,1751415057747,-1043.36,0.00022161,2]
[368966077,1751415057756,-750.35,0.00022163,2]
[368966078,1751415057767,-910.37,0.00022163,2]
[368966079,1751415057777,-485.53,0.00022163,2]
[368966080,1751415057787,-497.96,0.00022163,2]
[368966081,1751415057796,-1127.3,0.00022163,2]
[368966082,1751415057806,-563.12,0.00022163,2]
[368966083,1751415057816,-460.0,0.00022163,2]
[368966084,1751415057826,-460.0,0.00022163,2]
[368966085,1751415057836,-464.78,0.00022164,2]
[368966086,1751415057846,-506.85,0.00022164,2]
[368966087,1751415057856,-635.59,0.00022164,2]
[368966088,1751415057866,-460.0,0.00022164,2]
[368966089,1751415057876,-828.39515417,0.00022314,7]
[368966090,1751415057885,-1060.0,0.00022362,2]
[368966091,1751415057895,-1060.0,0.00022384,2]
[368966092,1751415057905,-597.8,0.00022435,2]
[368966093,1751415057914,-800.31,0.00022435,2]
[368966094,1751415057924,-460.0,0.00022435,2]
[368966095,1751415057934,-1043.36,0.00022435,2]
[368966096,1751415057943,-750.35,0.00022437,2]
[368966097,1751415057953,-910.37,0.00022437,2]
[368966098,1751415057963,-485.53,0.00022437,2]
[368966099,1751415057972,-497.96,0.00022437,2]
[368966100,1751415057984,-1127.3,0.00022437,2]
[368966101,1751415057994,-460.0,0.00022437,2]
[368966102,1751415058003,-460.0,0.00022437,2]
[368966103,1751415058014,-464.78,0.00022438,2]
[368966104,1751415058024,-506.85,0.00022438,2]
[368966105,1751415058035,-635.59,0.00022438,2]
[368966106,1751415058044,-460.0,0.00022438,2]
[368966107,1751415058054,-25000.0,0.00022474,2]
[368966108,1751415058065,-828.39515417,0.0002259,7]
[368966109,1751415058075,-293.65453,0.00022603,2]
[368966110,1751415058084,-597.8,0.00022709,2]
[368966111,1751415058094,-800.31,0.00022709,2]
[368966112,1751415058104,-460.0,0.00022709,2]
[368966113,1751415058114,-1043.36,0.00022709,2]
[368966114,1751415058123,-750.35,0.00022711,2]
[368966115,1751415058134,-910.37,0.00022711,2]
[368966116,1751415058143,-485.53,0.00022711,2]
[368966117,1751415058153,-497.96,0.00022711,2]
[368966118,1751415058163,-1127.3,0.00022711,2]
[368966119,1751415058172,-460.0,0.00022711,2]
[368966120,1751415058181,-460.0,0.00022711,2]
[368966121,1751415058191,-166.892833,0.00022712,2]
[368966122,1751415058201,-166.892833,0.00022712,2]
[368966123,1751415058210,-156.088352,0.00022712,7]
[368966124,1751415058220,-156.088352,0.00022712,7]
[368966125,1751415058230,-464.78,0.00022712,2]
[368966126,1751415058240,-506.85,0.00022712,2]
[368966127,1751415058251,-635.59,0.00022712,2]
[368966128,1751415058261,-460.0,0.00022712,2]
[368966129,1751415058271,-616.0,0.00022779,2]
[368966130,1751415058280,-828.39515417,0.00022866,8]
[368966131,1751415058290,-168.0,0.00022882,2]
[368966132,1751415058299,-597.8,0.00022983,2]
[368966133,1751415058309,-800.31,0.00022983,2]
[368966134,1751415058320,-163.99631587,0.00022983,2]
[368966135,1751415058331,-1043.36,0.00022983,2]
[368966136,1751415058340,-750.35,0.00022985,2]
[368966137,1751415058350,-910.37,0.00022985,2]
[368966138,1751415058359,-485.53,0.00022985,2]
[368966139,1751415058369,-497.96,0.00022985,2]
[368966140,1751415058379,-1127.3,0.00022985,2]
[368966141,1751415058388,-394.84,0.00022985,2]
[368966142,1751415058397,-460.0,0.00022985,2]
[368966143,1751415058408,-464.78,0.00022986,2]
[368966144,1751415058418,-506.85,0.00022986,2]
[368966145,1751415058428,-635.59,0.00022986,2]
[368966146,1751415058438,-218.02,0.00022986,2]
[368966147,1751415058447,-160.0,0.00023,3]
[368966148,1751415058458,-828.39515417,0.00023141,8]
[368966149,1751415058467,-211.0,0.00023208,2]
[368966150,1751415058477,-366.235562,0.00023233,2]
[368966151,1751415058487,-597.8,0.00023256,2]
[368966152,1751415058496,-800.31,0.00023256,2]
[368966153,1751415058507,-1043.36,0.00023256,2]
[368966154,1751415058517,-750.35,0.00023259,2]
[368966155,1751415058527,-910.37,0.00023259,2]
[368966156,1751415058538,-485.53,0.00023259,2]
[368966157,1751415058548,-497.96,0.00023259,2]
[368966158,1751415058558,-1127.3,0.00023259,2]
[368966159,1751415058569,-444.77,0.00023259,2]
[368966160,1751415058579,-464.78,0.0002326,2]
[368966161,1751415058590,-506.85,0.0002326,2]
[368966162,1751415058599,-635.59,0.0002326,2]
[368966163,1751415058609,-616.0,0.00023293,2]
[368966164,1751415058619,-215.0738,0.00023295,2]
[368966165,1751415058629,-211.0,0.00023362,2]
[368966166,1751415058639,-616.0,0.00023387,2]
[368966167,1751415058649,-2000.11613274,0.00023407,2]
[368966168,1751415058659,-828.39515417,0.00023417,9]
[368966169,1751415058669,-2328.81,0.00023456,3]
[368966170,1751415058679,-157.338507,0.00023456,7]
[368966171,1751415058689,-157.338507,0.00023456,7]
[368966172,1751415058701,-151.0,0.00023456,7]
[368966173,1751415058711,-300.0,0.0002346,2]
[368966174,1751415058721,-151.0,0.0002346,7]
[368966175,1751415058731,-166.892833,0.0002346,2]
[368966176,1751415058742,-166.892833,0.0002346,2]
[368966177,1751415058752,-178.177774,0.0002346,7]
[368966178,1751415058762,-178.177774,0.0002346,7]
[368966179,1751415058771,-157.338507,0.0002346,7]
[368966180,1751415058781,-157.338507,0.0002346,7]
[368966181,1751415058792,-156.088352,0.0002346,7]
[368966182,1751415058801,-156.088352,0.0002346,7]
[368966183,1751415058811,-151.0,0.0002346,7]
[368966184,1751415058821,-406.0,0.00023461,2]
[368966185,1751415058831,-151.0,0.000235,7]
[368966186,1751415058841,-837.20943635,0.000235,3]
[368966187,1751415058852,-12571.40790328,0.000235,7]
[368966188,1751415058861,-208.1741641,0.00023507,2]
[368966189,1751415058871,-3000.0,0.00023516,3]
[368966190,1751415058881,-597.99,0.0002353,2]
[368966191,1751415058890,-800.38,0.0002353,2]
[368966192,1751415058901,-1043.52,0.0002353,2]
[368966193,1751415058910,-168.0,0.00023531,2]
[368966194,1751415058919,-211.0,0.00023531,2]
[368966195,1751415058929,-464.92,0.00023533,2]
[368966196,1751415058938,-750.37,0.00023533,2]
[368966197,1751415058949,-910.57,0.00023533,2]
[368966198,1751415058960,-506.87,0.00023533,2]
[368966199,1751415058970,-485.63,0.00023533,2]
[368966200,1751415058980,-498.09,0.00023533,2]
[368966201,1751415058994,-635.78208288,0.00023533,2]
[368966202,1751415059004,-1127.52,0.00023533,2]
[368966203,1751415059014,-168.0,0.00023537,2]
[368966204,1751415059024,-1060.0,0.00023569,2]
[368966205,1751415059035,-650.02,0.000236,2]
[368966206,1751415059044,-211.0,0.00023689,2]
[368966207,1751415059054,-828.39515417,0.00023693,9]
[368966208,1751415059063,-168.0,0.00023729,2]
[368966209,1751415059074,-211.0,0.00023734,2]
[368966210,1751415059084,-506.66706471,0.00023779,2]
[368966211,1751415059093,-12596.7,0.000238,2]
[368966212,1751415059103,-506.66706471,0.00023879,2]
[368966213,1751415059113,-13171.80173947,0.00023888,2]
[368966214,1751415059124,-1712.91511334,0.000239,2]
[368966215,1751415059133,-828.39515417,0.00023969,10]
[368966216,1751415059143,-506.66706471,0.00023979,2]
[368966217,1751415059153,-151.0,0.00023998,7]
[368966218,1751415059163,-524.61914904,0.00024,3]
[368966219,1751415059172,-524.61914904,0.00024,3]
[368966220,1751415059265,-837.20943635,0.00024,7]
[368966221,1751415059276,-12571.40790328,0.00024,3]
[368966222,1751415059286,-230.32585361,0.00024,3]
[368966223,1751415059296,-230.32585361,0.00024,7]
[368966224,1751415059305,-215.01728679,0.00024,3]
[368966225,1751415059315,-215.01728679,0.00024,7]
[368966226,1751415059325,-160.0,0.00024,7]
[368966227,1751415059334,-168.0,0.00024023,2]
[368966228,1751415059343,-506.66706471,0.00024079,2]
[368966229,1751415059353,-641.0,0.000241,2]
[368966230,1751415059362,-168.0,0.00024108,2]
[368966231,1751415059372,-500.0,0.0002415,2]
[368966232,1751415059382,-500.0,0.0002415,2]
[368966233,1751415059391,-506.66706471,0.00024179,2]
[368966234,1751415059400,-151.0,0.00024192,7]
[368966235,1751415059410,-1769.597,0.00024228,2]
[368966236,1751415059419,-828.39515417,0.00024245,10]
[368966237,1751415059428,-506.66706471,0.00024279,2]
[368966238,1751415059438,-174.327825,0.00024344,2]
[368966239,1751415059447,-506.66706471,0.00024379,2]
[368966240,1751415059457,-721.73,0.000244,7]
[368966241,1751415059466,-725.66393,0.00024401,4]
[368966242,1751415059476,-168.0,0.00024462,2]
[368966243,1751415059487,-506.66706471,0.00024479,2]
[368966244,1751415059496,-551.52,0.000245,7]
[368966245,1751415059505,-828.39515417,0.00024521,11]
[368966246,1751415059515,-500.0,0.00024567,2]
[368966247,1751415059525,-506.66706471,0.00024579,2]
[368966248,1751415059535,-5000.0,0.000246,31]
[368966249,1751415059546,-223.0315306,0.00024664,2]
[368966250,1751415059555,-506.66706471,0.00024679,2]
[368966251,1751415059565,-5242.17,0.000247,7]
[368966252,1751415059575,-166.892833,0.000247,2]
[368966253,1751415059586,-166.892833,0.000247,2]
[368966254,1751415059596,-156.088352,0.000247,7]
[368966255,1751415059606,-156.088352,0.000247,7]
[368966256,1751415059616,-506.66706471,0.00024779,2]
[368966257,1751415059625,-1721.010829,0.0002478,5]
[368966258,1751415059635,-828.39515417,0.00024797,11]
[368966259,1751415059644,-1000.0,0.000248,5]
[368966260,1751415059654,-1625.20941168,0.000248,2]
[368966261,1751415059664,-157.338507,0.00024829,7]
[368966262,1751415059673,-157.338507,0.00024829,7]
[368966263,1751415059683,-5189.25936718,0.0002483,2]
[368966264,1751415059693,-5189.25936713,0.0002486,2]
[368966265,1751415059703,-178.177774,0.00024876,7]
[368966266,1751415059712,-178.177774,0.00024876,7]
[368966267,1751415059721,-1000.0,0.00024876,2]
[368966268,1751415059731,-1000.0,0.00024876,2]
[368966269,1751415059740,-1000.0,0.00024876,2]
[368966270,1751415059749,-220.0,0.00024876,2]
[368966271,1751415059759,-506.66706471,0.00024879,2]
[368966272,1751415059768,-151.0,0.00024885,7]
[368966273,1751415059777,-5189.25936713,0.0002489,2]
[368966274,1751415059787,-1030.00258606,0.000249,2]
[368966275,1751415059797,-2561.0,0.000249,2]
[368966276,1751415059807,-2561.0,0.000249,2]
[368966277,1751415059816,-2561.0,0.000249,2]
[368966278,1751415059827,-2561.0,0.000249,2]
[368966279,1751415059836,-2561.0,0.000249,2]
[368966280,1751415059846,-2561.0,0.000249,2]
[368966281,1751415059855,-2561.0,0.000249,2]
[368966282,1751415059864,-2561.0,0.000249,2]
[368966283,1751415059874,-151.0,0.000249,7]
[368966284,1751415059883,-199.936024,0.000249,7]
[368966285,1751415059893,-151.0,0.000249,7]
[368966286,1751415059902,-281.013001,0.000249,7]
[368966287,1751415059911,-281.013001,0.000249,7]
[368966288,1751415059920,-151.0,0.000249,7]
[368966289,1751415059930,-151.0,0.000249,7]
[368966290,1751415059939,-151.0,0.000249,7]
[368966291,1751415059949,-277.238445,0.000249,7]
[368966292,1751415059958,-151.0,0.000249,7]
[368966293,1751415059968,-151.0,0.000249,7]
[368966294,1751415059977,-770.875485,0.000249,7]
[368966295,1751415059990,-770.875485,0.000249,7]
[368966296,1751415059999,-151.0,0.000249,7]
[368966297,1751415060009,-151.0,0.000249,7]
[368966298,1751415060018,-151.0,0.000249,7]
[368966299,1751415060028,-151.0,0.000249,7]
[368966300,1751415060039,-275.726064,0.000249,7]
[368966301,1751415060048,-275.726064,0.000249,7]
[368966302,1751415060058,-151.0,0.000249,7]
[368966303,1751415060067,-151.0,0.000249,7]
[368966304,1751415060077,-151.0,0.000249,7]
[368966305,1751415060087,-151.0,0.000249,7]
[368966306,1751415060096,-163.51463,0.000249,7]
[368966307,1751415060106,-300.288699,0.000249,7]
[368966308,1751415060115,-151.0,0.000249,7]
[368966309,1751415060124,-151.0,0.000249,7]
[368966310,1751415060134,-151.0,0.000249,7]
[368966311,1751415060143,-151.0,0.000249,7]
[368966312,1751415060153,-151.0,0.000249,7]
[368966313,1751415060162,-151.0,0.000249,7]
[368966314,1751415060171,-229.882169,0.000249,7]
[368966315,1751415060181,-229.882169,0.000249,7]
[368966316,1751415060190,-229.882169,0.000249,7]
[368966317,1751415060199,-229.882169,0.000249,7]
[368966318,1751415060209,-229.882169,0.000249,7]
[368966319,1751415060218,-229.882169,0.000249,7]
[368966320,1751415060228,-151.0,0.000249,7]
[368966321,1751415060238,-151.0,0.000249,7]
[368966322,1751415060247,-151.0,0.000249,7]
[368966323,1751415060257,-374.937682,0.000249,7]
[368966324,1751415060266,-374.937682,0.000249,7]
[368966325,1751415060277,-374.937682,0.000249,7]
[368966326,1751415060287,-1909.573739,0.000249,7]
[368966327,1751415060296,-1909.573739,0.000249,7]
[368966328,1751415060306,-1909.573739,0.000249,7]
[368966329,1751415060315,-151.000001,0.000249,7]
[368966330,1751415060325,-178.569109,0.000249,7]
[368966331,1751415060335,-166.892833,0.000249,2]
[368966332,1751415060344,-166.892835,0.000249,2]
[368966333,1751415060354,-178.177774,0.000249,7]
[368966334,1751415060363,-178.177774,0.000249,7]
[368966335,1751415060373,-178.177774,0.000249,7]
[368966336,1751415060382,-178.177774,0.000249,7]
[368966337,1751415060391,-157.338507,0.000249,7]
[368966338,1751415060401,-157.338507,0.000249,7]
[368966339,1751415060411,-157.338507,0.000249,7]
[368966340,1751415060420,-157.338507,0.000249,7]
[368966341,1751415060430,-156.088352,0.000249,7]
[368966342,1751415060440,-156.088351,0.000249,7]
[368966343,1751415060450,-195.927401,0.000249,7]
[368966344,1751415060459,-195.927401,0.000249,7]
[368966345,1751415060469,-195.927401,0.000249,7]
[368966346,1751415060479,-195.927401,0.000249,7]
[368966347,1751415060488,-837.20943635,0.000249,7]
[368966348,1751415060499,-230.32585361,0.000249,7]
[368966349,1751415060508,-215.01728679,0.000249,7]
[368966350,1751415060518,-120933.7578709,0.000249,2]
[368966351,1751415060724,-4984.46285297,0.000249,2]
[368966352,1751415060736,-18698.88439692,0.000249,2]
[368966353,1751415060753,-652873.35534321,0.000249,2]
[368966354,1751415060763,-321.3003,0.000249,2]
[368966355,1751415060773,-321.3003,0.000249,2]
[368966356,1751415060782,-160.0,0.000249,7]
[368966357,1751415060792,-5189.25936713,0.0002492,2]
[368966358,1751415060807,-209.0,0.0002493,2]
[368966359,1751415060818,-600.0,0.0002493,2]
[368966360,1751415060828,-600.0,0.0002493,2]
[368966361,1751415060838,-600.0,0.0002493,2]
[368966362,1751415060848,-600.0,0.0002493,2]
[368966363,1751415060858,-600.0,0.0002493,2]
[368966364,1751415060868,-600.0,0.0002493,2]
[368966365,1751415060878,-600.0,0.0002493,2]
[368966366,1751415060888,-203.57233622,0.0002493,2]
[368966367,1751415060898,-600.0,0.0002493,2]
[368966368,1751415060908,-600.0,0.0002493,2]
[368966369,1751415060918,-600.0,0.0002493,2]
[368966370,1751415060928,-5189.25936713,0.0002495,2]
[368966371,1751415060938,-3098.15478341,0.0002495,2]
[368966372,1751415060948,-506.66706471,0.00024979,2]
[368966373,1751415060958,-5189.25936713,0.00024979,2]
[368966374,1751415060967,-1121.68093,0.0002498,5]
[368966375,1751415060977,-1650.50590019,0.0002499,30]
[368966376,1751415060997,-1000.0,0.00025,25]
[368966377,1751415061013,-161.66338967,0.00025,60]
[368966378,1751415061029,-207.17458898,0.00025,120]
[368966379,1751415061048,-3203.84440432,0.00025,7]
[368966380,1751415061059,-157.99176732,0.00025,120]
[368966381,1751415061070,-1061.53678535,0.00025,2]
[368966382,1751415061080,-1847.68753023,0.00025,2]
[368966383,1751415061089,-2679.50809822,0.00025,10]
[368966384,1751415061099,-1000.0,0.00025,5]
[368966385,1751415061108,-524.61914904,0.00025,10]
[368966386,1751415061117,-2200.0,0.00025002,2]
[368966387,1751415061127,-5189.25936713,0.00025009,2]
[368966388,1751415061138,-5189.25936713,0.00025039,2]
[368966389,1751415061147,-151.0,0.0002505,7]
[368966390,1751415061157,-151.0,0.0002505,7]
[368966391,1751415061166,-151.0,0.0002505,7]
[368966392,1751415061176,-151.0,0.0002505,7]
[368966393,1751415061185,-770.875485,0.0002505,7]
[368966394,1751415061194,-770.875485,0.0002505,7]
[368966395,1751415061204,-151.0,0.0002505,7]
[368966396,1751415061213,-151.0,0.0002505,7]
[368966397,1751415061223,-151.0,0.0002505,7]
[368966398,1751415061232,-297.589839,0.0002505,7]
[368966399,1751415061242,-275.726064,0.0002505,7]
[368966400,1751415061251,-275.726064,0.0002505,7]
[368966401,1751415061261,-151.0,0.0002505,7]
[368966402,1751415061271,-151.0,0.0002505,7]
[368966403,1751415061281,-151.0,0.0002505,7]
[368966404,1751415061290,-229.882169,0.0002505,7]
[368966405,1751415061299,-229.882169,0.0002505,7]
[368966406,1751415061308,-151.0,0.0002505,7]
[368966407,1751415061319,-374.937682,0.0002505,7]
[368966408,1751415061329,-1909.573739,0.0002505,7]
[368966409,1751415061339,-195.927401,0.0002505,7]
[368966410,1751415061351,-195.927401,0.0002505,7]
[368966411,1751415061362,-151.0,0.00025051,7]
[368966412,1751415061373,-151.0,0.00025051,7]
[368966413,1751415061383,-151.0,0.00025051,7]
[368966414,1751415061393,-151.0,0.00025051,7]
[368966415,1751415061403,-229.882169,0.00025051,7]
[368966416,1751415061413,-229.882169,0.00025051,7]
[368966417,1751415061423,-151.0,0.00025051,7]
[368966418,1751415061432,-374.937682,0.00025051,7]
[368966419,1751415061441,-1909.573739,0.00025051,7]
[368966420,1751415061451,-178.177774,0.00025051,7]
[368966421,1751415061460,-178.177774,0.00025051,7]
[368966422,1751415061471,-157.338507,0.00025051,7]
[368966423,1751415061480,-157.338507,0.00025051,7]
[368966424,1751415061490,-195.927401,0.00025051,7]
[368966425,1751415061499,-195.927401,0.00025051,7]
[368966426,1751415061509,-151.0,0.00025059,7]
[368966427,1751415061519,-151.0,0.00025059,7]
[368966428,1751415061528,-151.0,0.00025059,7]
[368966429,1751415061538,-281.013001,0.00025059,7]
[368966430,1751415061548,-281.013001,0.00025059,7]
[368966431,1751415061558,-151.0,0.00025059,7]
[368966432,1751415061569,-5189.25936713,0.00025069,2]
[368966433,1751415061579,-828.39515417,0.00025072,12]
[368966434,1751415061589,-506.66706471,0.00025079,2]
[368966435,1751415061599,-5189.25936713,0.00025099,2]
[368966436,1751415061609,-2000.0,0.000251,2]
[368966437,1751415061619,-2000.0,0.000251,2]
[368966438,1751415061628,-2000.0,0.000251,2]
[368966439,1751415061639,-4852.0,0.00025119,7]
[368966440,1751415061648,-1192.2,0.0002512,60]
[368966441,1751415061658,-10000.0,0.00025123,60]
[368966442,1751415061668,-155.195304,0.00025123,7]
[368966443,1751415061678,-600.0,0.00025123,2]
[368966444,1751415061688,-600.0,0.00025123,2]
[368966445,1751415061698,-600.0,0.00025123,2]
[368966446,1751415061708,-201.42893449,0.00025123,2]
[368966447,1751415061719,-500.0,0.00025123,2]
[368966448,1751415061728,-200.0,0.00025133,60]
[368966449,1751415061739,-2033.0,0.00025135,60]
[368966450,1751415061749,-639.0,0.00025138,60]
[368966451,1751415061758,-182.142545,0.00025142,10]
[368966452,1751415061768,-151.0,0.00025143,7]
[368966453,1751415061778,-229.882169,0.00025143,7]
[368966454,1751415061788,-229.882169,0.00025143,7]
[368966455,1751415061798,-151.0,0.00025143,7]
[368966456,1751415061807,-374.937682,0.00025143,7]
[368966457,1751415061817,-1909.573739,0.00025143,7]
[368966458,1751415061827,-195.927401,0.00025143,7]
[368966459,1751415061837,-195.927401,0.00025143,7]
[368966460,1751415061847,-318.57454408,0.00025146,60]
[368966461,1751415061857,-151.0,0.00025148,7]
[368966462,1751415061867,-151.0,0.00025148,7]
[368966463,1751415061877,-151.0,0.00025148,7]
[368966464,1751415061887,-151.0,0.00025148,7]
[368966465,1751415061970,-151.0,0.00025148,7]
[368966466,1751415061981,-151.0,0.00025148,7]
[368966467,1751415061995,-151.0,0.00025148,7]
[368966468,1751415062004,-250.133199,0.00025148,7]
[368966469,1751415062014,-151.0,0.00025148,7]
[368966470,1751415062023,-151.0,0.00025148,7]
[368966471,1751415062033,-151.0,0.00025148,7]
[368966472,1751415062042,-151.0,0.00025148,7]
[368966473,1751415062053,-151.0,0.00025148,7]
[368966474,1751415062065,-151.0,0.00025148,7]
[368966475,1751415062076,-151.0,0.00025148,7]
[368966476,1751415062086,-151.0,0.00025148,7]
[368966477,1751415062095,-151.0,0.00025148,7]
[368966478,1751415062105,-151.0,0.00025148,7]
[368966479,1751415062118,-151.0,0.00025148,7]
[368966480,1751415062128,-242.675344,0.00025148,7]
[368966481,1751415062138,-151.0,0.00025148,7]
[368966482,1751415062152,-151.0,0.00025148,7]
[368966483,1751415062162,-151.0,0.00025148,7]
[368966484,1751415062172,-281.013001,0.00025148,7]
[368966485,1751415062182,-281.013001,0.00025148,7]
[368966486,1751415062191,-151.0,0.00025148,7]
[368966487,1751415062200,-151.0,0.00025148,7]
[368966488,1751415062210,-151.0,0.00025148,7]
[368966489,1751415062221,-151.0,0.00025148,7]
[368966490,1751415062231,-770.875485,0.00025148,7]
[368966491,1751415062243,-770.875485,0.00025148,7]
[368966492,1751415062254,-151.0,0.00025148,7]
[368966493,1751415062265,-151.0,0.00025148,7]
[368966494,1751415062275,-275.726064,0.00025148,7]
[368966495,1751415062285,-275.726064,0.00025148,7]
[368966496,1751415062296,-216.663774,0.00025148,7]
[368966497,1751415062307,-178.177774,0.00025148,7]
[368966498,1751415062317,-178.177774,0.00025148,7]
[368966499,1751415062328,-157.338507,0.00025148,7]
[368966500,1751415062339,-157.338507,0.00025148,7]
[368966501,1751415062350,-182.142545,0.00025149,14]
[368966502,1751415062360,-281.013001,0.0002515,7]
[368966503,1751415062371,-281.013001,0.0002515,7]
[368966504,1751415062382,-281.013001,0.0002515,7]
[368966505,1751415062392,-281.013001,0.0002515,7]
[368966506,1751415062403,-281.013001,0.0002515,7]
[368966507,1751415062413,-281.013001,0.0002515,7]
[368966508,1751415062422,-281.013001,0.0002515,7]
[368966509,1751415062431,-281.013001,0.0002515,7]
[368966510,1751415062441,-281.013001,0.0002515,7]
[368966511,1751415062451,-281.013001,0.0002515,7]
[368966512,1751415062460,-281.013001,0.0002515,7]
[368966513,1751415062471,-281.013001,0.0002515,7]
[368966514,1751415062483,-281.013001,0.0002515,7]
[368966515,1751415062493,-281.012999,0.0002515,7]
[368966516,1751415062503,-151.0,0.0002515,7]
[368966517,1751415062512,-184.788545,0.0002515,7]
[368966518,1751415062523,-151.0,0.0002515,7]
[368966519,1751415062533,-770.875485,0.0002515,7]
[368966520,1751415062544,-770.875485,0.0002515,7]
[368966521,1751415062554,-770.875485,0.0002515,7]
[368966522,1751415062563,-770.875485,0.0002515,7]
[368966523,1751415062574,-770.875485,0.0002515,7]
[368966524,1751415062584,-770.875485,0.0002515,7]
[368966525,1751415062594,-770.875485,0.0002515,7]
[368966526,1751415062604,-770.875485,0.0002515,7]
[368966527,1751415062614,-770.875485,0.0002515,7]
[368966528,1751415062623,-770.875485,0.0002515,7]
[368966529,1751415062632,-770.875485,0.0002515,7]
[368966530,1751415062643,-770.875485,0.0002515,7]
[368966531,1751415062653,-770.875485,0.0002515,7]
[368966532,1751415062663,-770.875485,0.0002515,7]
[368966533,1751415062674,-151.0,0.0002515,7]
[368966534,1751415062684,-342.212062,0.0002515,7]
[368966535,1751415062693,-342.212062,0.0002515,7]
[368966536,1751415062704,-342.212062,0.0002515,7]
[368966537,1751415062714,-342.212054,0.0002515,7]
[368966538,1751415062723,-151.0,0.0002515,7]
[368966539,1751415062733,-151.0,0.0002515,7]
[368966540,1751415062744,-151.0,0.0002515,7]
[368966541,1751415062753,-151.0,0.0002515,7]
[368966542,1751415062763,-151.0,0.0002515,7]
[368966543,1751415062772,-151.0,0.0002515,7]